{"text_format":"1","workbook":"xlsx","n_sheets":3,"sheets":["Лист1","Лист2","Лист3"],"not_rendered":{"charts":0,"images":0,"macros":1,"external_links":0,"defined_names":1,"comments":0,"pivot_tables":0},"unopened":[],"bounds":{"document_bytes":16777216,"sheet_cells":100000,"rows_first":2000,"rows_last":500,"rows_between":2000,"halvings":0,"cell_chars":16384,"cell_head_chars":4096},"cells_cut":0,"cells_raw":0,"read":"whole","date_system":"1900"}

{"sheet":"Лист1","index":0,"n_rows":257,"n_cols":4,"rows_kept":257,"cut":false,"hidden":false,"merged":[]}
["Название группы","Номер группы","Фраза","Список"]
["silent 100",1,"silent 100","silent 100"]
["silent 100",{"$f":"IF(A3=A2,B2,B2+1)","v":1},"\"silent 100\"","\"silent 100\""]
["silent 100",{"$f":"IF(A4=A3,B3,B3+1)","v":1},"\"!silent !100\"","\"!silent !100\""]
["silent 100",{"$f":"IF(A5=A4,B4,B4+1)","v":1},null,"silent 200"]
["silent 200",{"$f":"IF(A6=A5,B5,B5+1)","v":2},"silent 200","\"silent 200\""]
["silent 200",{"$f":"IF(A7=A6,B6,B6+1)","v":2},"\"silent 200\"","\"!silent !200\""]
["silent 200",{"$f":"IF(A8=A7,B7,B7+1)","v":2},"\"!silent !200\"","silent design"]
["silent 200",2,null,"\"silent design\""]
["silent design",3,"silent design","\"!silent !design\""]
["silent design",{"$f":"IF(A11=A10,B10,B10+1)","v":3},"\"silent design\"","silentub"]
["silent design",3,"\"!silent !design\"","\"silentub\""]
["silent design",3,null,"\"!silentub\""]
["silentub",{"$f":"IF(A14=A13,B13,B13+1)","v":4},"silentub","soler palau silent"]
["silentub",4,"\"silentub\"","\"soler palau silent\""]
["silentub",4,"\"!silentub\"","\"!soler !palau !silent\""]
["silentub",{"$f":"IF(A17=A16,B16,B16+1)","v":4},null,"td silent"]
["soler palau silent",5,"soler palau silent","\"td silent\""]
["soler palau silent",5,"\"soler palau silent\"","\"!td !silent\""]
["soler palau silent",{"$f":"IF(A20=A19,B19,B19+1)","v":5},"\"!soler !palau !silent\"","бесшумный вентилятор"]
["soler palau silent",5,null,"\"бесшумный вентилятор\""]
["td silent",6,null,"\"!бесшумный !вентилятор\""]
["td silent",{"$f":"IF(A23=A22,B22,B22+1)","v":6},null,"бесшумный вентилятор для ванной"]
["td silent",6,null,"\"бесшумный вентилятор для ванной\""]
["td silent",6,null,"\"!бесшумный !вентилятор !для !ванной\""]
["бесшумный вентилятор",{"$f":"IF(A26=A25,B25,B25+1)","v":7},null,"бесшумный канальный вентилятор"]
["бесшумный вентилятор",7,null,"\"бесшумный канальный вентилятор\""]
["бесшумный вентилятор",7,null,"\"!бесшумный !канальный !вентилятор\""]
["бесшумный вентилятор",{"$f":"IF(A29=A28,B28,B28+1)","v":7},null,"бытовые вентиляторы в минске"]
["бесшумный вентилятор +для ванной",8,null,"\"бытовые вентиляторы в минске\""]
["бесшумный вентилятор +для ванной",8,null,"\"!бытовые !вентиляторы !в !минске\""]
["бесшумный вентилятор +для ванной",{"$f":"IF(A32=A31,B31,B31+1)","v":8},null,"бытовые вытяжные вентиляторы"]
["бесшумный вентилятор +для ванной",8,null,"\"бытовые вытяжные вентиляторы\""]
["бесшумный канальный вентилятор",9,null,"\"!бытовые !вытяжные !вентиляторы\""]
["бесшумный канальный вентилятор",{"$f":"IF(A35=A34,B34,B34+1)","v":9},null,"бытовые канальные вентиляторы"]
["бесшумный канальный вентилятор",9,null,"\"бытовые канальные вентиляторы\""]
["бесшумный канальный вентилятор",9,null,"\"!бытовые !канальные !вентиляторы\""]
["бытовые вентиляторы +в минске",{"$f":"IF(A38=A37,B37,B37+1)","v":10},null,"ванна вытяжной вентилятор"]
["бытовые вентиляторы +в минске",10,null,"\"ванна вытяжной вентилятор\""]
["бытовые вентиляторы +в минске",10,null,"\"!ванна !вытяжной !вентилятор\""]
["бытовые вентиляторы +в минске",{"$f":"IF(A41=A40,B40,B40+1)","v":10},null,"вентилятор в ванную комнату купить"]
["бытовые вытяжные вентиляторы",11,null,"\"вентилятор в ванную комнату купить\""]
["бытовые вытяжные вентиляторы",11,null,"\"!вентилятор !в !ванную !комнату !купить\""]
["бытовые вытяжные вентиляторы",{"$f":"IF(A44=A43,B43,B43+1)","v":11},null,"вентилятор в вытяжку ванны"]
["бытовые вытяжные вентиляторы",11,null,"\"вентилятор в вытяжку ванны\""]
["бытовые канальные вентиляторы",12,null,"\"!вентилятор !в !вытяжку !ванны\""]
["бытовые канальные вентиляторы",{"$f":"IF(A47=A46,B46,B46+1)","v":12},null,"вентилятор в туалет купить в минске"]
["бытовые канальные вентиляторы",12,null,"\"вентилятор в туалет купить в минске\""]
["бытовые канальные вентиляторы",12,null,"\"!вентилятор !в !туалет !купить !в !минске\""]
["ванна вытяжной вентилятор",{"$f":"IF(A50=A49,B49,B49+1)","v":13},null,"вентилятор для ванной комнаты купить"]
["ванна вытяжной вентилятор",13,null,"\"вентилятор для ванной комнаты купить\""]
["ванна вытяжной вентилятор",13,null,"\"!вентилятор !для !ванной !комнаты !купить\""]
["ванна вытяжной вентилятор",{"$f":"IF(A53=A52,B52,B52+1)","v":13},null,"вентилятор для ванны"]
["вентилятор +в ванную комнату купить",14,null,"\"вентилятор для ванны\""]
["вентилятор +в ванную комнату купить",14,null,"\"!вентилятор !для !ванны\""]
["вентилятор +в ванную комнату купить",{"$f":"IF(A56=A55,B55,B55+1)","v":14},null,"вентилятор для ванны и туалета купить"]
["вентилятор +в ванную комнату купить",14,null,"\"вентилятор для ванны и туалета купить\""]
["вентилятор +в вытяжку ванны",15,null,"\"!вентилятор !для !ванны !и !туалета !купить\""]
["вентилятор +в вытяжку ванны",{"$f":"IF(A59=A58,B58,B58+1)","v":15},null,"вентилятор для ванны бесшумный"]
["вентилятор +в вытяжку ванны",15,null,"\"вентилятор для ванны бесшумный\""]
["вентилятор +в вытяжку ванны",15,null,"\"!вентилятор !для !ванны !бесшумный\""]
["вентилятор +в туалет купить +в минске",{"$f":"IF(A62=A61,B61,B61+1)","v":16},null,"вентилятор silent"]
["вентилятор +в туалет купить +в минске",16,null,"\"вентилятор silent\""]
["вентилятор +в туалет купить +в минске",16,null,"\"!вентилятор !silent\""]
["вентилятор +в туалет купить +в минске",{"$f":"IF(A65=A64,B64,B64+1)","v":16},null,"вентилятор silent 100"]
["вентилятор +для ванной комнаты купить",17,null,"\"вентилятор silent 100\""]
["вентилятор +для ванной комнаты купить",17,null,"\"!вентилятор !silent !100\""]
["вентилятор +для ванной комнаты купить",{"$f":"IF(A68=A67,B67,B67+1)","v":17},null,"вентилятор silent design"]
["вентилятор +для ванной комнаты купить",17,null,"\"вентилятор silent design\""]
["вентилятор +для ванны",18,null,"\"!вентилятор !silent !design\""]
["вентилятор +для ванны",{"$f":"IF(A71=A70,B70,B70+1)","v":18},null,"вентилятор soler palau"]
["вентилятор +для ванны",{"$f":"IF(A72=A71,B71,B71+1)","v":18},null,"\"вентилятор soler palau\""]
["вентилятор +для ванны",18,null,"\"!вентилятор !soler !palau\""]
["вентилятор +для ванны +и туалета купить",{"$f":"IF(A74=A73,B73,B73+1)","v":19},null,"вентилятор soler palau silent"]
["вентилятор +для ванны +и туалета купить",19,null,"\"вентилятор soler palau silent\""]
["вентилятор +для ванны +и туалета купить",19,null,"\"!вентилятор !soler !palau !silent\""]
["вентилятор +для ванны +и туалета купить",{"$f":"IF(A77=A76,B76,B76+1)","v":19},null,"вентилятор бесшумный с обратным клапаном"]
["вентилятор +для ванны бесшумный",20,null,"\"вентилятор бесшумный с обратным клапаном\""]
["вентилятор +для ванны бесшумный",20,null,"\"!вентилятор !бесшумный !с !обратным !клапаном\""]
["вентилятор +для ванны бесшумный",{"$f":"IF(A80=A79,B79,B79+1)","v":20},null,"вентилятор бесшумный купить"]
["вентилятор +для ванны бесшумный",20,null,"\"вентилятор бесшумный купить\""]
["вентилятор silent",21,null,"\"!вентилятор !бесшумный !купить\""]
["вентилятор silent",{"$f":"IF(A83=A82,B82,B82+1)","v":21},null,"вентилятор бытовой"]
["вентилятор silent",21,null,"\"вентилятор бытовой\""]
["вентилятор silent",21,null,"\"!вентилятор !бытовой\""]
["вентилятор silent 100",{"$f":"IF(A86=A85,B85,B85+1)","v":22},null,"вентилятор бытовой купить"]
["вентилятор silent 101",23,null,"\"вентилятор бытовой купить\""]
["вентилятор silent 102",24,null,"\"!вентилятор !бытовой !купить\""]
["вентилятор silent 103",{"$f":"IF(A89=A88,B88,B88+1)","v":25},null,"вентилятор в ванну купить"]
["вентилятор silent design",26,null,"\"вентилятор в ванну купить\""]
["вентилятор silent design",26,null,"\"!вентилятор !в !ванну !купить\""]
["вентилятор silent design",{"$f":"IF(A92=A91,B91,B91+1)","v":26},null,"вентилятор в ванную комнату"]
["вентилятор silent design",26,null,"\"вентилятор в ванную комнату\""]
["вентилятор soler palau",27,null,"\"!вентилятор !в !ванную !комнату\""]
["вентилятор soler palau",{"$f":"IF(A95=A94,B94,B94+1)","v":27},null,"вентилятор в туалет"]
["вентилятор soler palau",27,null,"\"вентилятор в туалет\""]
["вентилятор soler palau",27,null,"\"!вентилятор !в !туалет\""]
["вентилятор soler palau silent",{"$f":"IF(A98=A97,B97,B97+1)","v":28},null,"вентилятор в туалет купить"]
["вентилятор soler palau silent",28,null,"\"вентилятор в туалет купить\""]
["вентилятор soler palau silent",28,null,"\"!вентилятор !в !туалет !купить\""]
["вентилятор soler palau silent",{"$f":"IF(A101=A100,B100,B100+1)","v":28},null,"вентилятор в туалет минск"]
["вентилятор бесшумный +с обратным клапаном",29,null,"\"вентилятор в туалет минск\""]
["вентилятор бесшумный +с обратным клапаном",29,null,"\"!вентилятор !в !туалет !минск\""]
["вентилятор бесшумный +с обратным клапаном",{"$f":"IF(A104=A103,B103,B103+1)","v":29},null,"вентилятор вытяжной для ванной"]
["вентилятор бесшумный +с обратным клапаном",29,null,"\"вентилятор вытяжной для ванной\""]
["вентилятор бесшумный купить",30,null,"\"!вентилятор !вытяжной !для !ванной\""]
["вентилятор бесшумный купить",{"$f":"IF(A107=A106,B106,B106+1)","v":30},null,"вентилятор вытяжной для ванной купить"]
["вентилятор бесшумный купить",30,null,"\"вентилятор вытяжной для ванной купить\""]
["вентилятор бесшумный купить",30,null,"\"!вентилятор !вытяжной !для !ванной !купить\""]
["вентилятор бытовой",{"$f":"IF(A110=A109,B109,B109+1)","v":31},null,"вентилятор вытяжной для ванны"]
["вентилятор бытовой",31,null,"\"вентилятор вытяжной для ванны\""]
["вентилятор бытовой",31,null,"\"!вентилятор !вытяжной !для !ванны\""]
["вентилятор бытовой",{"$f":"IF(A113=A112,B112,B112+1)","v":31},null,"вентилятор вытяжной с клапаном"]
["вентилятор бытовой купить",32,null,"\"вентилятор вытяжной с клапаном\""]
["вентилятор бытовой купить",32,null,"\"!вентилятор !вытяжной !с !клапаном\""]
["вентилятор бытовой купить",{"$f":"IF(A116=A115,B115,B115+1)","v":32},null,"вентилятор вытяжной канальный"]
["вентилятор бытовой купить",32,null,"\"вентилятор вытяжной канальный\""]
["вентилятор в ванну купить",33,null,"\"!вентилятор !вытяжной !канальный\""]
["вентилятор в ванну купить",{"$f":"IF(A119=A118,B118,B118+1)","v":33},null,"вентилятор вытяжной купить в минске"]
["вентилятор в ванну купить",33,null,"\"вентилятор вытяжной купить в минске\""]
["вентилятор в ванну купить",33,null,"\"!вентилятор !вытяжной !купить !в !минске\""]
["вентилятор в ванную комнату",{"$f":"IF(A122=A121,B121,B121+1)","v":34},null,"вентилятор для ванной"]
["вентилятор в ванную комнату",34,null,"\"вентилятор для ванной\""]
["вентилятор в ванную комнату",34,null,"\"!вентилятор !для !ванной\""]
["вентилятор в ванную комнату",{"$f":"IF(A125=A124,B124,B124+1)","v":34},null,"вентилятор для ванной купить в минске"]
["вентилятор в туалет",35,null,"\"вентилятор для ванной купить в минске\""]
["вентилятор в туалет",35,null,"\"!вентилятор !для !ванной !купить !в !минске\""]
["вентилятор в туалет",{"$f":"IF(A128=A127,B127,B127+1)","v":35},null,"вентилятор для ванны и туалета"]
["вентилятор в туалет",35,null,"\"вентилятор для ванны и туалета\""]
["вентилятор в туалет купить",36,null,"\"!вентилятор !для !ванны !и !туалета\""]
["вентилятор в туалет купить",{"$f":"IF(A131=A130,B130,B130+1)","v":36},null,"вентилятор осевой вытяжной"]
["вентилятор в туалет купить",36,null,"\"вентилятор осевой вытяжной\""]
["вентилятор в туалет купить",36,null,"\"!вентилятор !осевой !вытяжной\""]
["вентилятор в туалет минск",{"$f":"IF(A134=A133,B133,B133+1)","v":37},null,"вентиляторы для ванной и туалета"]
["вентилятор в туалет минск",{"$f":"IF(A135=A134,B134,B134+1)","v":37},null,"\"вентиляторы для ванной и туалета\""]
["вентилятор в туалет минск",37,null,"\"!вентиляторы !для !ванной !и !туалета\""]
["вентилятор в туалет минск",{"$f":"IF(A137=A136,B136,B136+1)","v":37},null,"вентиляторы для ванны минск"]
["вентилятор вытяжной +для ванной",38,null,"\"вентиляторы для ванны минск\""]
["вентилятор вытяжной +для ванной",38,null,"\"!вентиляторы !для !ванны !минск\""]
["вентилятор вытяжной +для ванной",{"$f":"IF(A140=A139,B139,B139+1)","v":38},null,"вентиляторы для ванной минск"]
["вентилятор вытяжной +для ванной",38,null,"\"вентиляторы для ванной минск\""]
["вентилятор вытяжной +для ванной купить",39,null,"\"!вентиляторы !для !ванной !минск\""]
["вентилятор вытяжной +для ванной купить",{"$f":"IF(A143=A142,B142,B142+1)","v":39},null,"вентиляторы канальные минск"]
["вентилятор вытяжной +для ванной купить",39,null,"\"вентиляторы канальные минск\""]
["вентилятор вытяжной +для ванной купить",39,null,"\"!вентиляторы !канальные !минск\""]
["вентилятор вытяжной +для ванны",{"$f":"IF(A146=A145,B145,B145+1)","v":40},null,"вытяжной вентилятор с обратным"]
["вентилятор вытяжной +для ванны",40,null,"\"вытяжной вентилятор с обратным\""]
["вентилятор вытяжной +для ванны",40,null,"\"!вытяжной !вентилятор !с !обратным\""]
["вентилятор вытяжной +для ванны",{"$f":"IF(A149=A148,B148,B148+1)","v":40},null,"вытяжной вентилятор с обратным клапаном"]
["вентилятор вытяжной +с клапаном",41,null,"\"вытяжной вентилятор с обратным клапаном\""]
["вентилятор вытяжной +с клапаном",41,null,"\"!вытяжной !вентилятор !с !обратным !клапаном\""]
["вентилятор вытяжной +с клапаном",{"$f":"IF(A152=A151,B151,B151+1)","v":41},null,"вытяжной вентилятор купить"]
["вентилятор вытяжной +с клапаном",41,null,"\"вытяжной вентилятор купить\""]
["вентилятор вытяжной канальный",42,null,"\"!вытяжной !вентилятор !купить\""]
["вентилятор вытяжной канальный",{"$f":"IF(A155=A154,B154,B154+1)","v":42},null,"вытяжные вентиляторы минск"]
["вентилятор вытяжной канальный",42,null,"\"вытяжные вентиляторы минск\""]
["вентилятор вытяжной канальный",42,null,"\"!вытяжные !вентиляторы !минск\""]
["вентилятор вытяжной купить +в минске",{"$f":"IF(A158=A157,B157,B157+1)","v":43},null,"канальные вентиляторы цена"]
["вентилятор вытяжной купить +в минске",43,null,"\"канальные вентиляторы цена\""]
["вентилятор вытяжной купить +в минске",43,null,"\"!канальные !вентиляторы !цена\""]
["вентилятор вытяжной купить +в минске",{"$f":"IF(A161=A160,B160,B160+1)","v":43},null,"канальный вентилятор купить в минске"]
["вентилятор для ванной",44,null,"\"канальный вентилятор купить в минске\""]
["вентилятор для ванной",44,null,"\"!канальный !вентилятор !купить !в !минске\""]
["вентилятор для ванной",{"$f":"IF(A164=A163,B163,B163+1)","v":44},null,"круглые канальные вентиляторы"]
["вентилятор для ванной",44,null,"\"круглые канальные вентиляторы\""]
["вентилятор для ванной купить в минске",45,null,"\"!круглые !канальные !вентиляторы\""]
["вентилятор для ванной купить в минске",{"$f":"IF(A167=A166,B166,B166+1)","v":45},null,"круглые канальные вентиляторы купить"]
["вентилятор для ванной купить в минске",45,null,"\"круглые канальные вентиляторы купить\""]
["вентилятор для ванной купить в минске",45,null,"\"!круглые !канальные !вентиляторы !купить\""]
["вентилятор для ванны и туалета",{"$f":"IF(A170=A169,B169,B169+1)","v":46},null,"купить вентилятор для ванной"]
["вентилятор для ванны и туалета",46,null,"\"купить вентилятор для ванной\""]
["вентилятор для ванны и туалета",46,null,"\"!купить !вентилятор !для !ванной\""]
["вентилятор для ванны и туалета",{"$f":"IF(A173=A172,B172,B172+1)","v":46},null,"купить вентилятор для ванны в минске"]
["вентилятор осевой вытяжной",47,null,"\"купить вентилятор для ванны в минске\""]
["вентилятор осевой вытяжной",47,null,"\"!купить !вентилятор !для !ванны !в !минске\""]
["вентилятор осевой вытяжной",{"$f":"IF(A176=A175,B175,B175+1)","v":47},null,"купить вентилятор для туалета и ванной"]
["вентилятор осевой вытяжной",47,null,"\"купить вентилятор для туалета и ванной\""]
["вентиляторы +для ванной +и туалета",48,null,"\"!купить !вентилятор !для !туалета !и !ванной\""]
["вентиляторы +для ванной +и туалета",{"$f":"IF(A179=A178,B178,B178+1)","v":48},null,"купить вентилятор в ванную"]
["вентиляторы +для ванной +и туалета",48,null,"\"купить вентилятор в ванную\""]
["вентиляторы +для ванной +и туалета",48,null,"\"!купить !вентилятор !в !ванную\""]
["вентиляторы +для ванны минск",{"$f":"IF(A182=A181,B181,B181+1)","v":49},null,"купить канальный вентилятор"]
["вентиляторы +для ванны минск",49,null,"\"купить канальный вентилятор\""]
["вентиляторы +для ванны минск",49,null,"\"!купить !канальный !вентилятор\""]
["вентиляторы +для ванны минск",{"$f":"IF(A185=A184,B184,B184+1)","v":49},null,"лучший вентилятор ванна"]
["вентиляторы для ванной минск",50,null,"\"лучший вентилятор ванна\""]
["вентиляторы для ванной минск",50,null,"\"!лучший !вентилятор !ванна\""]
["вентиляторы для ванной минск",{"$f":"IF(A188=A187,B187,B187+1)","v":50},null,"подключение вентилятор в ванну"]
["вентиляторы для ванной минск",50,null,"\"подключение вентилятор в ванну\""]
["вентиляторы канальные минск",51,null,"\"!подключение !вентилятор !в !ванну\""]
["вентиляторы канальные минск",{"$f":"IF(A191=A190,B190,B190+1)","v":51},null,"подключение вентилятора в ванной"]
["вентиляторы канальные минск",51,null,"\"подключение вентилятора в ванной\""]
["вентиляторы канальные минск",51,null,"\"!подключение !вентилятора !в !ванной\""]
["вытяжной вентилятор +с обратным",52]
["вытяжной вентилятор +с обратным",52]
["вытяжной вентилятор +с обратным",52]
["вытяжной вентилятор +с обратным",52]
["вытяжной вентилятор +с обратным клапаном",53]
["вытяжной вентилятор +с обратным клапаном",{"$f":"IF(A199=A198,B198,B198+1)","v":53}]
["вытяжной вентилятор +с обратным клапаном",53]
["вытяжной вентилятор +с обратным клапаном",53]
["вытяжной вентилятор купить",54]
["вытяжной вентилятор купить",54]
["вытяжной вентилятор купить",54]
["вытяжной вентилятор купить",54]
["вытяжные вентиляторы минск",55]
["вытяжные вентиляторы минск",55]
["вытяжные вентиляторы минск",55]
["вытяжные вентиляторы минск",55]
["канальные вентиляторы цена",56]
["канальные вентиляторы цена",56]
["канальные вентиляторы цена",56]
["канальные вентиляторы цена",56]
["канальный вентилятор купить +в минске",57]
["канальный вентилятор купить +в минске",57]
["канальный вентилятор купить +в минске",57]
["канальный вентилятор купить +в минске",57]
["круглые канальные вентиляторы",58]
["круглые канальные вентиляторы",58]
["круглые канальные вентиляторы",58]
["круглые канальные вентиляторы",58]
["круглые канальные вентиляторы купить",59]
["круглые канальные вентиляторы купить",59]
["круглые канальные вентиляторы купить",59]
["круглые канальные вентиляторы купить",59]
["купить вентилятор +для ванной",60]
["купить вентилятор +для ванной",60]
["купить вентилятор +для ванной",60]
["купить вентилятор +для ванной",60]
["купить вентилятор +для ванны +в минске",61]
["купить вентилятор +для ванны +в минске",61]
["купить вентилятор +для ванны +в минске",61]
["купить вентилятор +для ванны +в минске",61]
["купить вентилятор +для туалета +и ванной",62]
["купить вентилятор +для туалета +и ванной",62]
["купить вентилятор +для туалета +и ванной",62]
["купить вентилятор +для туалета +и ванной",62]
["купить вентилятор в ванную",63]
["купить вентилятор в ванную",63]
["купить вентилятор в ванную",63]
["купить вентилятор в ванную",63]
["купить канальный вентилятор",64]
["купить канальный вентилятор",64]
["купить канальный вентилятор",64]
["купить канальный вентилятор",64]
["лучший вентилятор ванна",65]
["лучший вентилятор ванна",65]
["лучший вентилятор ванна",65]
["лучший вентилятор ванна",65]
["подключение вентилятор +в ванну",66]
["подключение вентилятор +в ванну",66]
["подключение вентилятор +в ванну",66]
["подключение вентилятор +в ванну",66]
["подключение вентилятора +в ванной",67]
["подключение вентилятора +в ванной",67]
["подключение вентилятора +в ванной",67]
["подключение вентилятора +в ванной",67]

{"sheet":"Лист2","index":1,"n_rows":0,"n_cols":0,"rows_kept":0,"cut":false,"hidden":false,"merged":[]}

{"sheet":"Лист3","index":2,"n_rows":0,"n_cols":0,"rows_kept":0,"cut":false,"hidden":false,"merged":[]}